bitfinex-derivatives/quotes_SOLF0:USTF0_20250411
["timestamp","ask_amount","ask_price","bid_price","bid_amount"]
[1744384128665,0.06192747,119.21,119.2,70.3932]
[1744384129570,0.06192747,119.21,119.2,8.3932]
[1744384132065,0.06192747,119.21,119.19,0.0554517]
[1744384132263,40.44192747,119.21,119.19,0.0554517]
[1744384132667,48.83502747,119.21,119.19,0.0554517]
[1744384133670,48.83502747,119.21,119.19,8.4492517]
[1744384134668,48.83502747,119.21,119.19,0.0554517]
[1744384135172,40.44192747,119.21,119.19,8.4490517]
[1744384135677,48.83452747,119.21,119.19,8.4490517]
[1744384136271,8.3932,119.2,119.19,0.0554517]
[1744384136672,40.44192747,119.21,119.19,0.0554517]
[1744384137174,48.83482747,119.21,119.19,8.4489517]
[1744384137471,40.44192747,119.21,119.19,0.0554517]
[1744384138670,40.44192747,119.21,119.19,8.4489517]
[1744384138870,40.44192747,119.21,119.19,0.0554517]
[1744384139175,48.83452747,119.21,119.19,8.4491517]
[1744384139369,40.44192747,119.21,119.19,8.4491517]
[1744384139970,0.06192747,119.21,119.19,0.0554517]
[1744384140175,0.06192747,119.21,119.2,8.43541458]
[1744384140565,2.747e-05,119.21,119.2,16.82861458]
[1744384140770,6.9619,119.26,119.2,8.43541458]
[1744384140971,6.9619,119.26,119.24,8.39]
[1744384141373,48.6886,119.27,119.24,8.39]
[1744384141569,48.73541458,119.27,119.23,16.82611458]
[1744384141877,8.49489701,119.26,119.24,0.05431465]
[1744384142179,16.88419701,119.26,119.24,0.05431465]
[1744384142474,8.44878243,119.26,119.24,0.05431465]
[1744384142771,16.88419701,119.26,119.24,0.05431465]
[1744384143278,8.44878243,119.26,119.24,0.05431465]
[1744384143777,8.44858243,119.26,119.24,8.44431465]
[1744384144077,0.05948243,119.26,119.24,0.05431465]
[1744384144477,0.05948243,119.26,119.25,8.3897]
[1744384145576,8.243e-05,119.26,119.25,8.3897]
[1744384145870,50.2733,119.33,119.24,13.22601014]
[1744384146074,3.2089,119.33,119.28,13.17169549]
[1744384146275,604.16,119.36,119.32,8.3848]
[1744384146477,604.16,119.36,119.28,13.17169549]
[1744384146678,604.16,119.36,119.34,8.3834]
[1744384146978,612.60634269,119.36,119.3,13.17169549]
[1744384147170,612.60634269,119.36,119.34,0.05988903]
[1744384147866,617.39593818,119.36,119.28,13.17169549]
[1744384148070,617.33169549,119.36,119.28,13.17169549]
[1744384148381,8.3838,119.34,119.3,8.3858]
[1744384148581,604.16,119.36,119.28,13.17169549]
[1744384148972,0.06033179,119.33,119.31,0.06267581]
[1744384149779,8.44453179,119.33,119.31,0.06267581]
[1744384149978,0.06033179,119.33,119.31,0.06267581]
[1744384150682,0.06033179,119.33,119.31,8.44777581]
[1744384151184,0.06033179,119.33,119.31,8.44787581]
[1744384151576,0.06033179,119.33,119.31,0.06267581]
[1744384151776,0.06033179,119.33,119.32,8.3848]
[1744384154784,0.06033179,119.33,119.32,21.55649549]
[1744384155584,0.06033179,119.33,119.32,8.3848]
[1744384156289,0.06033179,119.33,119.32,70.3848]
[1744384156476,0.06033179,119.33,119.32,62.0]
[1744384156681,33.5433,119.31,119.09,69.29731562]
[1744384156979,25.25,119.27,119.09,13.17169549]
[1744384157182,13.17169549,119.2,119.1,651.38]
[1744384157386,16.7742,119.29,119.15,13.17169549]
[1744384157387,8.3903,119.25,119.15,13.17169549]
[1744384157589,13.17169549,119.29,119.22,62.0]
[1744384157885,0.05509561,119.27,119.24,0.0616129]
[1744384158091,13.17169549,119.32,119.25,47.68]
[1744384158384,13.17169549,119.3,119.26,47.68]
[1744384158587,21.61592701,119.3,119.27,0.0545747]
[1744384158886,0.05753152,119.3,119.27,0.0545747]
[1744384160288,78.35308586,119.28,119.27,47.7345747]
[1744384160883,91.52478135,119.28,119.23,603.74]
[1744384161084,13.17169549,119.26,119.19,603.74]
[1744384161289,13.17169549,119.26,119.2,47.68]
[1744384161494,8.3903,119.25,119.21,62.0]
[1744384161893,8.3913,119.23,119.21,62.0]
[1744384162087,8.3913,119.23,119.22,0.05759052]
[1744384162590,0.0604026,119.24,119.22,0.05759052]
[1744384162792,29.41121979,119.23,119.22,0.05759052]
[1744384163692,93.9314649,119.23,119.22,0.05759052]
[1744384164094,102.3225649,119.23,119.22,0.05759052]
[1744384164496,93.9314649,119.23,119.22,0.05759052]
[1744384165291,29.47162239,119.24,119.22,13.22928601]
[1744384165496,29.47162239,119.24,119.23,62.0]
[1744384166690,29.47162239,119.24,119.22,60.90928601]
[1744384166889,0.0604026,119.24,119.22,60.90928601]
[1744384167089,8.3911,119.23,119.22,47.73759052]
[1744384167592,8.3911,119.23,119.22,0.05759052]
[1744384167796,8.3932,119.2,119.19,651.42]
[1744384167983,13.17169549,119.22,119.14,13.17169549]
[1744384168188,66.39977008,119.23,119.13,603.82]
[1744384168189,13.17169549,119.2,119.13,603.82]
[1744384168387,8.3967,119.16,119.14,47.68]
[1744384168589,13.17169549,119.2,119.14,47.68]
[1744384168791,29.41121979,119.18,119.13,603.82]
[1744384168989,29.47257631,119.18,119.16,0.06307926]
[1744384169197,29.47257631,119.18,119.17,47.68]
[1744384169589,29.47257631,119.18,119.17,109.68]
[1744384169984,30.04179072,119.18,119.17,109.68]
[1744384170590,30.04179072,119.18,119.17,47.68]
[1744384170783,0.06135652,119.18,119.16,0.06307926]
[1744384170998,8.3954,119.17,119.16,0.06307926]
[1744384172400,8.3968,119.15,119.14,47.7]
[1744384172700,108.62120082,119.17,119.11,47.7]
[1744384172887,108.62120082,119.17,119.1,47.7]
[1744384173097,8.3992,119.12,119.1,47.7]
[1744384173596,0.05815199,119.12,119.1,109.76394395]
[1744384173799,0.05815199,119.12,119.1,0.06394395]
[1744384174301,0.05815199,119.12,119.06,651.8]
[1744384175392,0.05815199,119.12,119.08,0.05390232]
[1744384175393,8.4008,119.1,119.08,0.05390232]
[1744384175703,0.05815199,119.12,119.08,0.05390232]
[1744384175900,8.401,119.09,119.08,0.05390232]
[1744384176308,33.3734342,119.11,119.03,47.72]
[1744384176598,21.08517997,119.1,119.03,47.72]
[1744384176903,21.08517997,119.1,119.03,62.0]
[1744384177098,8.4042,119.05,119.03,62.0]
[1744384177299,3.3856,119.09,119.03,62.0]
[1744384177493,0.06292613,119.05,119.04,8.4045]
[1744384177697,29.9804342,119.11,119.04,47.72]
[1744384177898,59.42809485,119.09,119.05,21.08517997]
[1744384178098,59.42809485,119.09,119.06,8.4027]
[1744384178405,59.42809485,119.09,119.05,21.08517997]
[1744384178705,0.06051473,119.08,119.06,0.05331215]
[1744384179297,0.06051473,119.08,119.07,21.08517997]
[1744384179495,29.44766065,119.13,119.07,21.08517997]
[1744384179699,29.44766065,119.13,119.08,47.74]
[1744384179999,37.84656065,119.13,119.08,56.1413]
[1744384180303,29.44766065,119.13,119.08,68.82517997]
[1744384180501,0.0549304,119.12,119.1,21.08517997]
[1744384180897,0.0549304,119.12,119.09,0.05477213]
[1744384181106,29.44766065,119.13,119.1,21.08517997]
[1744384181405,11.6364,119.18,119.1,21.08517997]
[1744384181599,8.3954,119.17,119.12,8.3982]
[1744384181999,3.2414,119.18,119.12,47.74]
[1744384182200,11.6365,119.18,119.13,8.3979]
[1744384182397,0.06237564,119.16,119.14,0.0628467]
[1744384182704,8.45877564,119.16,119.14,0.0628467]
[1744384183002,0.06237564,119.16,119.14,0.0628467]
[1744384183308,8.45857564,119.16,119.14,0.0628467]
[1744384184707,8.45857564,119.16,119.08,604.46]
[1744384184708,21.14755561,119.16,119.07,51.2611]
[1744384185007,3.2414,119.18,119.08,21.08517997]
[1744384185214,3.2414,119.18,119.1,21.08517997]
[1744384185409,3.2414,119.18,119.11,47.74]
[1744384185710,0.0569472,119.15,119.13,0.05850922]
[1744384186099,0.0569472,119.15,119.13,8.45650922]
[1744384186906,0.0569472,119.15,119.13,0.05850922]
[1744384187611,29.44766065,119.19,119.14,83.08517997]
[1744384187811,29.44766065,119.19,119.15,46.76]
[1744384188011,29.44766065,119.19,119.18,8.3946]
[1744384188408,29.44766065,119.19,119.15,46.76]
[1744384188601,29.44766065,119.19,119.16,0.05473762]
[1744384188903,0.06215812,119.18,119.16,0.05473762]
[1744384189201,0.06215812,119.18,119.17,8.3954]
[1744384189712,0.06215812,119.18,119.13,50.132]
[1744384190507,0.06215812,119.18,119.12,6.6574]
[1744384190709,0.06215812,119.18,119.13,8.3981]
[1744384191011,21.14797548,119.17,119.14,0.06414135]
[1744384191411,3.3808,119.16,119.14,0.06414135]
[1744384191712,3.3808,119.16,119.11,8.3991]
[1744384191713,50.1408,119.16,119.11,8.3991]
[1744384192012,11.7348,119.15,119.12,8.3985]
[1744384192411,3.3376,119.15,119.08,88.48989]
[1744384192606,3.437,119.18,119.08,109.57506997]
[1744384192810,50.0976,119.2,119.1,21.14494518]
[1744384193011,50.0976,119.2,119.1,21.08517997]
[1744384193307,8.394,119.19,119.16,8.3955]
[1744384193913,8.45408534,119.19,119.16,8.45867936]
[1744384194808,0.06008534,119.19,119.16,0.06317936]
[1744384195007,0.06008534,119.19,119.16,67.90835933]
[1744384195708,0.06008534,119.19,119.16,46.82317936]
[1744384195908,0.06008534,119.19,119.16,67.90835933]
[1744384196312,0.06008534,119.19,119.17,8.3948]
[1744384196913,0.06008534,119.19,119.16,0.06317936]
[1744384197309,8.45448534,119.19,119.16,8.45907936]
[1744384197508,0.06008534,119.19,119.16,0.06317936]
[1744384197915,8.45448534,119.19,119.16,8.45887936]
[1744384198215,0.06008534,119.19,119.16,8.45887936]
[1744384198518,8.3947,119.18,119.16,0.06317936]
[1744384198814,0.06008534,119.19,119.16,0.06317936]
[1744384199114,0.06008534,119.19,119.17,8.3949]
[1744384199711,8.45408534,119.19,119.17,8.3949]
[1744384200113,22.89214579,119.18,119.17,8.3949]
[1744384200311,22.89214579,119.18,119.16,8.45887936]
[1744384200612,22.89214579,119.18,119.16,0.06317936]
[1744384200915,22.89214579,119.18,119.17,8.3954]
[1744384201214,22.89214579,119.18,119.16,0.06317936]
[1744384201404,22.89214579,119.18,119.16,8.45887936]
[1744384201607,31.34653113,119.19,119.16,8.45887936]
[1744384201805,3.95843018,119.18,119.16,8.45887936]
[1744384202115,3.95843018,119.18,119.17,8.3954]
[1744384202310,22.95223113,119.19,119.16,0.06317936]
[1744384202507,22.95223113,119.19,119.16,21.14835933]
[1744384202710,22.95223113,119.19,119.17,50.039]
[1744384203218,22.95223113,119.19,119.18,8.3946]
[1744384203811,0.06008534,119.19,119.18,8.3946]
[1744384204209,0.06008534,119.19,119.16,0.06317936]
[1744384204411,0.06008534,119.19,119.16,21.14835933]
[1744384204609,8.3908,119.24,119.16,21.14835933]
[1744384204811,3.81157416,119.23,119.21,8.3921]
[1744384205114,3.81157416,119.22,119.21,8.3921]
[1744384205504,3.81157416,119.23,119.21,8.3921]
[1744384205711,0.06416181,119.23,119.22,8.3918]
[1744384206610,29.44766065,119.28,119.25,8.3891]
[1744384206816,29.44766065,119.28,119.24,21.08517997]
[1744384207215,29.44766065,119.28,119.27,8.3883]
[1744384207705,0.05522341,119.29,119.27,8.3883]
[1744384207911,0.05522341,119.29,119.26,0.05863729]
[1744384208111,3.86440954,119.29,119.26,0.05863729]
[1744384208308,0.05522341,119.29,119.26,0.05863729]
[1744384208914,8.3881,119.28,119.26,0.05863729]
[1744384209314,8.44242341,119.29,119.26,0.05863729]
[1744384209617,0.05522341,119.29,119.26,0.05863729]
[1744384210419,0.05522341,119.29,119.27,8.3878]
[1744384210615,8.44222341,119.29,119.27,8.3878]
[1744384211115,8.44222341,119.29,119.26,0.05863729]
[1744384211421,0.05522341,119.29,119.28,8.3876]
[1744384212622,3.4944,119.37,119.28,66.28517997]
[1744384212922,24.57957997,119.37,119.28,66.28517997]
[1744384213117,3.4944,119.37,119.28,66.28517997]
[1744384213313,37.83026065,119.36,119.28,66.28517997]
[1744384213521,29.44766065,119.36,119.31,8.3852]
[1744384213717,0.05459794,119.33,119.31,8.43972147]
[1744384213918,0.05459794,119.33,119.31,0.05452147]
[1744384214423,0.05459794,119.33,119.32,8.3848]
[1744384216218,0.05459794,119.33,119.31,0.05452147]
[1744384216721,0.05459794,119.33,119.31,8.43982147]
[1744384217227,8.3848,119.32,119.31,0.05452147]
[1744384218826,11.73569794,119.33,119.31,0.05452147]
[1744384219026,0.05459794,119.33,119.31,0.05452147]
[1744384219426,8.43909794,119.33,119.31,0.05452147]
[1744384220028,8.3848,119.32,119.31,0.05452147]
[1744384220731,8.43909794,119.33,119.31,0.05452147]
[1744384220925,0.05459794,119.33,119.31,0.05452147]
[1744384222033,29.44766065,119.38,119.31,0.05452147]
[1744384222235,29.44766065,119.38,119.31,7.09312147]
[1744384222431,29.44766065,119.38,119.32,21.08517997]
[1744384222632,37.82846065,119.38,119.35,8.3823]
[1744384222831,37.82846065,119.38,119.32,21.08517997]
[1744384223226,0.0617492,119.36,119.35,8.3823]
[1744384224525,74.62766065,119.42,119.37,8.3812]
[1744384225032,74.62766065,119.42,119.33,45.18]
[1744384225334,8.3795,119.4,119.37,8.3809]
[1744384225530,74.62766065,119.42,119.34,83.08517997]
[1744384225730,0.0535703,119.4,119.37,0.05980783]
[1744384226537,0.0535703,119.4,119.39,8.3799]
[1744384227134,29.44766065,119.44,119.37,50.52600783]
[1744384227337,29.44766065,119.44,119.38,21.08517997]
[1744384227636,37.82406065,119.44,119.41,8.3784]
[1744384227836,29.44766065,119.44,119.37,50.4662]
[1744384228136,8.3774,119.43,119.37,50.4662]
[1744384228435,0.06270333,119.41,119.39,0.05897012]
[1744384228633,0.06270333,119.41,119.4,8.3788]
[1744384228826,0.06270333,119.41,119.39,0.05897012]
[1744384229732,0.06270333,119.41,119.39,8.43857012]
[1744384230039,0.06270333,119.41,119.39,0.05897012]
[1744384230841,8.3792,119.4,119.39,0.05897012]
[1744384231636,8.38,119.4,119.3,64.74517997]
[1744384231844,21.08517997,119.39,119.3,43.66]
[1744384232040,21.08517997,119.37,119.29,6.8221]
[1744384232239,8.3847,119.33,119.29,6.8221]
[1744384232439,3.3068,119.36,119.29,6.8221]
[1744384232634,3.5396,119.38,119.29,6.8221]
[1744384232835,8.44031786,119.34,119.31,0.06120064]
[1744384233235,0.05691786,119.34,119.31,8.44630064]
[1744384233432,8.3848,119.32,119.31,0.06120064]
[1744384235450,8.3868,119.3,119.24,71.60797997]
[1744384236240,3.5787,119.34,119.26,21.08517997]
[1744384236447,0.05730506,119.31,119.29,0.05362923]
[1744384237356,8.3862,119.3,119.29,0.05362923]
[1744384237558,0.05730506,119.31,119.29,0.05362923]
[1744384238860,0.05730506,119.31,119.3,8.3862]
[1744384239652,0.05730506,119.31,119.29,8.44012923]
[1744384240158,0.05730506,119.31,119.3,8.3862]
[1744384241549,0.05730506,119.31,119.29,8.44012923]
[1744384241754,0.05730506,119.31,119.29,0.05362923]
[1744384241951,0.05730506,119.31,119.3,8.3862]
[1744384242547,0.05730506,119.31,119.29,0.05362923]
[1744384242755,0.05730506,119.31,119.29,8.44032923]
[1744384243660,0.05730506,119.31,119.29,0.05362923]
[1744384244052,8.44310506,119.31,119.29,0.05362923]
[1744384244558,0.05730506,119.31,119.3,8.3862]
[1744384244762,0.05730506,119.31,119.29,0.05362923]
[1744384245055,0.05730506,119.31,119.22,24.43947997]
[1744384245257,21.08517997,119.3,119.22,3.3543]
[1744384245662,8.3887,119.27,119.22,3.3543]
[1744384246259,0.05845745,119.26,119.23,0.05745006]
[1744384246661,0.05845745,119.26,119.24,8.39]
[1744384247863,0.05845745,119.26,119.23,0.05745006]
[1744384248567,21.14363742,119.26,119.23,0.05745006]
[1744384248764,8.3904,119.25,119.23,0.05745006]
[1744384249067,0.05845745,119.26,119.23,0.05745006]
[1744384249269,3.62330433,119.26,119.23,0.05745006]
[1744384249465,24.7084843,119.26,119.23,0.05745006]
[1744384249673,14.34464688,119.25,119.23,0.05745006]
[1744384249865,10.7798,119.25,119.23,0.05745006]
[1744384250060,10.7798,119.25,119.21,35.24777]
[1744384250061,3.56657374,119.24,119.21,35.24777]
[1744384250263,10.7798,119.25,119.21,35.24777]
[1744384250468,8.3915,119.23,119.21,35.24777]
[1744384250871,10.7798,119.25,119.21,35.24777]
[1744384251169,8.44548806,119.24,119.22,0.06433896]
[1744384252079,0.05468806,119.24,119.23,8.3911]
[1744384252872,29.44766065,119.29,119.22,21.14951893]
[1744384253271,8.3879,119.28,119.25,8.3893]
[1744384253665,29.44766065,119.29,119.22,21.08517997]
[1744384253872,0.05969442,119.27,119.26,8.3886]
[1744384254272,0.05969442,119.27,119.24,0.05726871]
[1744384254474,0.05969442,119.27,119.25,8.3897]
[1744384254670,0.05969442,119.27,119.24,0.05726871]
[1744384254972,0.05969442,119.27,119.25,8.3892]
[1744384255275,0.05969442,119.27,119.24,0.05726871]
[1744384256669,0.05969442,119.27,119.24,21.14244868]
[1744384256875,645.78,119.33,119.24,21.14244868]
[1744384257070,645.78,119.33,119.29,8.3862]
[1744384257272,42.18,119.33,119.26,21.08517997]
[1744384257875,0.06045795,119.31,119.28,0.05806989]
[1744384258279,0.06045795,119.31,119.3,8.3856]
[1744384259274,53.9483,119.36,119.33,8.3839]
[1744384259470,50.5624,119.36,119.3,62.0]
[1744384259679,42.18,119.36,119.3,62.0]
[1744384259871,8.3842,119.33,119.3,8.3857]
[1744384260269,8.3855,119.31,119.29,8.3867]
[1744384260578,8.3855,119.31,119.3,0.05318995]
[1744384261780,21.08517997,119.31,119.23,3.2915]
[1744384262278,8.388,119.28,119.23,3.2915]
[1744384262579,8.388,119.28,119.23,8.3908]
[1744384262580,42.18,119.28,119.23,8.3908]
[1744384262776,8.3895,119.26,119.23,8.3908]
[1744384262977,8.3895,119.26,119.24,0.05835957]
[1744384263178,21.14683949,119.27,119.24,0.05835957]
[1744384263476,21.08517997,119.25,119.21,35.24777]
[1744384263671,42.18,119.24,119.21,35.24777]
[1744384263867,8.3918,119.22,119.21,35.24777]
[1744384264277,42.18,119.24,119.21,35.24777]
[1744384264479,0.05999716,119.23,119.21,35.24777]
[1744384265180,0.05999716,119.23,119.22,8.3918]
[1744384265575,50.5685,119.27,119.21,35.24777]
[1744384265777,42.18,119.27,119.23,8.3905]
[1744384266174,50.5686,119.27,119.22,62.0]
[1744384266370,42.18,119.27,119.22,62.0]
[1744384266777,0.06278868,119.26,119.24,8.3904]
[1744384267077,0.06278868,119.26,119.23,0.05928739]
[1744384267383,21.08517997,119.25,119.21,35.24777]
[1744384268483,21.08517997,119.25,119.22,0.06360011]
[1744384269282,8.3911,119.23,119.22,0.06360011]
[1744384269480,71.65627997,119.23,119.22,1.1e-07]
[1744384269876,63.26517997,119.23,119.13,42.18]
[1744384270078,21.08517997,119.21,119.13,104.18]
[1744384270277,42.18,119.23,119.14,21.08517997]
[1744384270677,42.18,119.23,119.15,3.3141]
[1744384270880,0.05909707,119.2,119.18,0.0646434]
[1744384271077,0.05909707,119.2,119.19,8.3936]
[1744384271581,0.05909707,119.2,119.19,8.3939]
[1744384274176,42.18,119.26,119.18,21.14982337]
[1744384274380,42.18,119.26,119.18,21.08517997]
[1744384274685,42.18,119.26,119.24,8.3901]
[1744384275286,42.24078152,119.26,119.24,8.4530325]
[1744384276080,42.24078152,119.26,119.24,0.0629325]
[1744384276486,42.24078152,119.26,119.25,8.3897]
[1744384276687,42.24078152,119.26,119.24,0.0629325]
[1744384276882,0.06078152,119.26,119.24,0.0629325]
[1744384277888,8.3897,119.25,119.24,0.0629325]
[1744384278186,49.0697,119.25,119.24,0.0629325]
[1744384278384,52.64519253,119.25,119.24,0.0629325]
[1744384278582,44.25570737,119.25,119.24,0.0629325]
[1744384278889,40.68,119.25,119.24,0.0629325]
[1744384279287,49.0697,119.25,119.24,0.0629325]
[1744384279488,52.6458516,119.25,119.24,0.0629325]
[1744384279678,3.5761516,119.25,119.24,0.0629325]
[1744384279877,0.06078152,119.26,119.24,0.0629325]
[1744384280080,8.45018152,119.26,119.24,0.0629325]
[1744384280290,0.06078152,119.26,119.24,0.0629325]
[1744384280489,8.45028152,119.26,119.24,0.0629325]
[1744384280878,0.06078152,119.26,119.24,0.0629325]
[1744384281283,0.06078152,119.26,119.24,8.4529325]
[1744384281589,0.06078152,119.26,119.24,0.0629325]
[1744384281888,0.06078152,119.26,119.25,8.3897]
[1744384283186,8.3866,119.3,119.26,8.3885]
[1744384283390,673.90766065,119.31,119.23,3.5805]
[1744384283591,3.57716693,119.3,119.23,3.5805]
[1744384283790,3.57716693,119.3,119.24,25.30887997]
[1744384283998,70.12766065,119.31,119.24,25.30887997]
[1744384284192,29.44766065,119.31,119.29,8.3864]
[1744384284386,29.44766065,119.31,119.26,40.66]
[1744384284585,29.50285553,119.31,119.29,0.05725084]
[1744384284786,0.05519488,119.31,119.29,0.05725084]
[1744384285087,0.05519488,119.31,119.29,8.44355084]
[1744384285288,0.05519488,119.31,119.29,0.05725084]
[1744384285684,8.44109488,119.31,119.29,0.05725084]
[1744384286087,0.05519488,119.31,119.29,0.05725084]
[1744384286286,0.05519488,119.31,119.29,8.44405084]
[1744384286788,8.3862,119.3,119.29,0.05725084]
[1744384286992,11.96352777,119.3,119.29,0.05725084]
[1744384287287,65.32250774,119.3,119.23,3.5805]
[1744384287489,3.57965169,119.29,119.2,21.08517997]
[1744384287685,3.57965169,119.28,119.2,24.63197997]
[1744384288295,0.05353316,119.25,119.23,8.44353633]
[1744384288685,0.05353316,119.25,119.23,0.05303633]
[1744384289284,3.63572644,119.25,119.23,0.05303633]
[1744384289488,8.44353316,119.25,119.23,0.05303633]
[1744384290395,8.3904,119.24,119.23,0.05303633]
[1744384290996,8.3919,119.22,119.16,40.66]
[1744384291992,0.05456024,119.2,119.18,0.06186995]
[1744384292394,8.3939,119.19,119.18,0.06186995]
[1744384292590,3.58310564,119.19,119.12,3.4379]
[1744384293193,3.58310564,119.19,119.12,65.4379]
[1744384293492,3.58310564,119.19,119.12,3.4379]
[1744384293796,3.58310564,119.19,119.16,8.396]
[1744384293797,0.05796874,119.17,119.16,8.396]
[1744384295896,0.05796874,119.17,119.15,8.3964]
[1744384296199,0.05796874,119.17,119.14,0.05751776]
[1744384296696,0.05796874,119.17,119.16,8.3961]
[1744384297599,0.05796874,119.17,119.15,8.3964]
[1744384298506,0.05796874,119.17,119.16,8.3961]
[1744384300101,49.0522,119.22,119.19,8.3935]
[1744384300302,40.66,119.22,119.19,8.3935]
[1744384300499,40.66,119.22,119.14,21.08517997]
[1744384300701,40.66,119.22,119.17,8.3947]
[1744384301102,8.3939,119.2,119.17,8.3947]
[1744384301305,8.3939,119.2,119.18,0.05899911]
[1744384301696,0.05680857,119.21,119.18,0.05899911]
[1744384301901,3.63111363,119.21,119.18,0.05899911]
[1744384305098,24.65948503,119.2,119.12,8.3983]
[1744384305298,21.08517997,119.18,119.11,7.5484]
[1744384305504,40.5,119.17,119.11,7.5484]
[1744384305802,8.3961,119.16,119.13,8.3978]
[1744384306005,40.5,119.17,119.11,7.5484]
[1744384306303,0.05831793,119.16,119.13,0.06252763]
[1744384306998,40.5,119.23,119.13,0.06252763]
[1744384307198,40.5,119.23,119.16,21.08517997]
[1744384307391,3.3505,119.24,119.17,7.5631]
[1744384307595,44.92,119.26,119.18,21.08517997]
[1744384307801,33.02461379,119.25,119.2,21.08517997]
[1744384307995,29.44766065,119.25,119.2,61.60517997]
[1744384308304,29.44766065,119.25,119.24,8.3904]
[1744384308506,29.44766065,119.25,119.21,0.05691916]
[1744384309304,29.44766065,119.25,119.24,8.3904]
[1744384310904,0.06022561,119.26,119.25,8.3897]
[1744384311498,3.5508,119.31,119.24,21.14341191]
[1744384311810,29.44766065,119.34,119.26,21.08517997]
[1744384311999,11.95782559,119.33,119.26,21.08517997]
[1744384312300,8.3845,119.33,119.27,4.0773]
[1744384312707,0.06324058,119.31,119.29,0.05488929]
[1744384313005,0.06324058,119.31,119.29,40.55488929]
[1744384313207,48.8828,119.35,119.32,8.3843]
[1744384313807,8.3835,119.34,119.31,8.3851]
[1744384314207,40.5,119.35,119.31,8.3851]
[1744384314511,0.06306235,119.34,119.31,8.44978024]
[1744384315303,0.06306235,119.34,119.32,8.3846]
[1744384316206,0.06306235,119.34,119.33,8.3841]
[1744384322009,0.06306235,119.34,119.32,8.3844]
[1744384322211,0.06306235,119.34,119.31,0.06468024]
[1744384322912,0.06306235,119.34,119.33,8.3841]
[1744384323516,8.3809,119.38,119.35,8.3823]
[1744384323913,61.54517997,119.42,119.35,21.08517997]
[1744384323914,40.46,119.42,119.35,21.08517997]
[1744384324113,40.46,119.42,119.36,4.1675]
[1744384324411,49.4125,119.45,119.36,8.3882]
[1744384324611,49.4125,119.45,119.4,8.379]
[1744384324813,0.05415933,119.42,119.37,61.54517997]
[1744384325110,0.05415933,119.42,119.4,8.3789]
[1744384325311,0.05415933,119.42,119.38,0.05804406]
[1744384325616,0.05415933,119.42,119.4,8.3786]
[1744384325911,0.05415933,119.42,119.38,0.05804406]
[1744384326117,0.05415933,119.42,119.38,40.51804406]
[1744384326416,0.05415933,119.42,119.41,8.3785]
[1744384328915,0.05415933,119.42,119.38,44.89714406]
[1744384329312,0.05415933,119.42,119.39,21.08517997]
[1744384329523,0.05415933,119.42,119.41,8.3785]
[1744384331107,0.05415933,119.42,119.4,8.3792]
[1744384331918,0.05415933,119.42,119.39,8.3795]
[1744384332420,0.05415933,119.42,119.38,0.05804406]
[1744384333021,8.3792,119.4,119.38,0.05804406]
[1744384333921,8.3789,119.41,119.38,8.43854406]
[1744384334423,8.43215933,119.42,119.38,0.05804406]
[1744384334622,0.05415933,119.42,119.38,0.05804406]
[1744384336013,0.05415933,119.42,119.39,8.3795]
[1744384336217,0.05415933,119.42,119.38,0.05804406]
[1744384336720,0.05415933,119.42,119.4,8.3789]
[1744384336918,0.05415933,119.42,119.38,0.05804406]
[1744384337420,8.3788,119.41,119.39,8.3796]
[1744384337625,0.05415933,119.42,119.39,8.3796]
[1744384337825,8.43245933,119.42,119.39,8.3796]
[1744384338225,0.05415933,119.42,119.39,8.3796]
[1744384338419,8.3788,119.41,119.39,8.3796]
[1744384339126,8.3792,119.4,119.38,8.43824406]
[1744384339426,0.05415933,119.42,119.38,8.43824406]
[1744384339727,0.05415933,119.42,119.38,0.05804406]
[1744384340129,8.43225933,119.42,119.38,0.05804406]
[1744384340327,0.05415933,119.42,119.39,8.3795]
[1744384340729,8.3795,119.4,119.38,0.05804406]
[1744384340930,0.05415933,119.42,119.38,0.05804406]
[1744384341228,8.3798,119.4,119.38,0.05804406]
[1744384341430,0.05415933,119.42,119.38,0.05804406]
[1744384341630,0.05415933,119.42,119.4,62.0]
[1744384341825,0.05415933,119.42,119.38,0.05804406]
[1744384342020,21.1393393,119.42,119.38,0.05804406]
[1744384343031,21.1393393,119.42,119.39,62.0]
[1744384343432,70.67221891,119.42,119.39,62.0]
[1744384343621,70.67221891,119.42,119.38,0.05804406]
[1744384343826,21.08517997,119.4,119.31,4.2234]
[1744384344026,8.3823,119.36,119.33,8.3835]